bitfinex/quotes_BTCUSD_20250601
["timestamp","ask_amount","ask_price","bid_price","bid_amount"]
[1748798618337,0.00109238,105140.0,105130.0,0.90413246]
[1748798618572,0.00109238,105140.0,105130.0,0.90413236]
[1748798618806,0.00109238,105140.0,105130.0,0.90413225]
[1748798619689,0.00109238,105140.0,105130.0,0.9041322]
[1748798619921,0.01060269,105140.0,105130.0,0.90413219]
[1748798620158,0.00109238,105140.0,105130.0,0.90413219]
[1748798620378,0.00109238,105140.0,105130.0,0.88853368]
[1748798620610,0.00109238,105140.0,105130.0,0.90413199]
[1748798620832,0.00109238,105140.0,105130.0,0.89521867]
[1748798621118,0.00109238,105140.0,105130.0,0.90413199]
[1748798621348,0.00109238,105140.0,105130.0,0.9041321]
[1748798621572,0.00109238,105140.0,105130.0,0.88853379]
[1748798621791,0.00109238,105140.0,105130.0,0.9041321]
[1748798622502,0.00109238,105140.0,105130.0,0.90413191]
[1748798623257,0.00109238,105140.0,105130.0,0.89744699]
[1748798623487,0.00109238,105140.0,105130.0,0.90413195]
[1748798624038,0.00109238,105140.0,105130.0,0.90413184]
[1748798624245,0.00109238,105140.0,105130.0,0.93643175]
[1748798624859,0.00109238,105140.0,105130.0,0.93643176]
[1748798625231,0.00109238,105140.0,105130.0,0.93643163]
[1748798625430,0.00109238,105140.0,105130.0,0.91192033]
[1748798625719,0.00109238,105140.0,105130.0,0.90300714]
[1748798625927,0.00109238,105140.0,105130.0,0.9364316]
[1748798626599,0.00109238,105140.0,105130.0,0.92751841]
[1748798626812,0.00109238,105140.0,105130.0,0.93643162]
[1748798627227,0.00109238,105140.0,105130.0,0.90300714]
[1748798627444,0.00109238,105140.0,105130.0,0.93643145]
[1748798627648,0.00109238,105140.0,105130.0,0.91860515]
[1748798627901,0.00109238,105140.0,105130.0,0.93643145]
[1748798628366,0.00109238,105140.0,105130.0,0.90300714]
[1748798628656,0.00109238,105140.0,105130.0,0.93643112]
[1748798628713,0.00109238,105140.0,105130.0,0.93643101]
[1748798628962,0.00109238,105140.0,105130.0,0.93643099]
[1748798630038,0.00109238,105140.0,105130.0,0.92751796]
[1748798630165,0.00109238,105140.0,105130.0,0.90969189]
[1748798630380,0.00109238,105140.0,105130.0,0.93643075]
[1748798630576,0.00109238,105140.0,105130.0,0.92751776]
[1748798630771,0.00109238,105140.0,105130.0,0.93643073]
[1748798631015,0.00109238,105140.0,105130.0,0.93643075]
[1748798631842,0.00109238,105140.0,105130.0,0.93643105]
[1748798632060,0.00109238,105140.0,105130.0,0.93643106]
[1748798632463,0.00109238,105140.0,105130.0,0.92974618]
[1748798632608,0.00109238,105140.0,105130.0,0.93643094]
[1748798633420,0.00109238,105140.0,105130.0,0.92751796]
[1748798633680,0.00109238,105140.0,105130.0,0.936431]
[1748798633899,0.03602997,105150.0,105140.0,0.59125484]
[1748798633900,0.01726828,105150.0,105140.0,0.59125484]
[1748798634122,0.22973627,105180.0,105170.0,0.21869244]
[1748798634337,4.76759342,105180.0,105170.0,0.22841456]
[1748798634554,4.96725105,105180.0,105170.0,0.20939873]
[1748798634771,4.96725105,105180.0,105170.0,0.21890687]
[1748798635002,4.96725105,105180.0,105170.0,0.22841487]
[1748798635219,4.96725105,105180.0,105170.0,0.22173556]
[1748798635439,4.95783673,105180.0,105170.0,0.22841473]
[1748798635650,4.95783673,105180.0,105170.0,0.23041473]
[1748798635879,4.95783673,105180.0,105170.0,0.22090668]
[1748798636109,4.94832968,105180.0,105170.0,0.20188747]
[1748798636506,5.03467675,105180.0,105170.0,0.00304276]
[1748798636507,5.03567675,105180.0,105170.0,0.00304276]
[1748798638591,0.1996767,105170.0,105160.0,0.22822272]
[1748798638799,0.2153767,105170.0,105160.0,0.23793926]
[1748798639199,0.2153767,105170.0,105160.0,0.25573597]
[1748798639609,0.2153767,105170.0,105160.0,0.25573203]
[1748798640049,0.2153767,105170.0,105160.0,0.25673203]
[1748798640635,0.2153767,105170.0,105160.0,0.25673124]
[1748798640889,0.2153767,105170.0,105160.0,0.22942894]
[1748798641095,0.2153767,105170.0,105160.0,0.24722198]
[1748798641300,0.2153767,105170.0,105160.0,0.24922198]
[1748798641721,0.2153767,105170.0,105160.0,0.24921978]
[1748798641951,0.2153767,105170.0,105160.0,0.22475655]
[1748798642159,0.2153767,105170.0,105160.0,0.23971085]
[1748798642363,0.2153767,105170.0,105160.0,0.21524751]
[1748798642571,0.2153767,105170.0,105160.0,0.2492191]
[1748798642987,0.2153767,105170.0,105160.0,0.24921781]
[1748798643164,0.1996767,105170.0,105160.0,0.25872676]
[1748798643811,0.1996767,105170.0,105160.0,0.2587265]
[1748798643987,0.1996767,105170.0,105160.0,0.25872521]
[1748798645077,0.1996767,105170.0,105160.0,0.25872412]
[1748798646111,0.1996767,105170.0,105160.0,0.25872413]
[1748798646313,0.20918484,105170.0,105160.0,0.25872413]
[1748798646521,0.20918484,105170.0,105160.0,0.25872343]
[1748798646743,0.20918484,105170.0,105160.0,0.25205309]
[1748798646951,0.20918484,105170.0,105160.0,0.24921394]
[1748798646952,0.02852424,105170.0,105160.0,0.24921394]
[1748798647162,0.0095076,105170.0,105160.0,0.25205216]
[1748798647369,0.02852316,105170.0,105160.0,0.27323499]
[1748798647583,0.02852316,105170.0,105160.0,0.29102244]
[1748798647800,0.02852316,105170.0,105160.0,0.29102201]
[1748798648014,0.02852316,105170.0,105160.0,0.29102204]
[1748798648444,0.02852316,105170.0,105160.0,0.2665647]
[1748798648656,0.03803112,105170.0,105160.0,0.27323489]
[1748798648860,0.03803112,105170.0,105160.0,0.29102207]
[1748798649877,0.03803112,105170.0,105160.0,0.2665647]
[1748798650298,0.03803112,105170.0,105160.0,0.29102313]
[1748798650752,0.03803112,105170.0,105160.0,0.29102341]
[1748798651378,0.03803112,105170.0,105160.0,0.29102377]
[1748798651582,0.04753926,105170.0,105160.0,0.29102482]
[1748798651996,0.04753926,105170.0,105160.0,0.29102496]
[1748798652812,0.04753989,105170.0,105160.0,0.29102496]
[1748798653023,0.04753989,105170.0,105160.0,0.29102594]
[1748798653245,0.04753989,105170.0,105160.0,0.26656466]
[1748798653462,0.04753989,105170.0,105160.0,0.29102631]
[1748798653926,0.04754052,105170.0,105160.0,0.28151806]
[1748798654112,0.24178484,105170.0,105160.0,0.03050483]
[1748798654544,0.24178484,105170.0,105160.0,0.02746208]
[1748798654802,0.24178484,105170.0,105160.0,0.01271422]
[1748798655047,0.22558484,105170.0,105160.0,0.04002062]
[1748798655300,0.20918484,105170.0,105160.0,0.04002062]
[1748798655969,0.20918484,105170.0,105160.0,0.03051158]
[1748798656176,0.20918484,105170.0,105160.0,0.01271634]
[1748798656395,0.20918484,105170.0,105160.0,0.02383882]
[1748798656647,0.20918484,105170.0,105160.0,0.03051557]
[1748798656859,0.20918484,105170.0,105160.0,0.0305165]
[1748798657068,0.20918484,105170.0,105160.0,0.22070288]
[1748798657488,0.20918484,105170.0,105160.0,0.22070374]
[1748798657849,0.20918484,105170.0,105160.0,0.23021305]
[1748798658257,0.20918484,105170.0,105160.0,0.22354132]
[1748798658652,0.20918484,105170.0,105160.0,0.20269569]
[1748798658862,0.20918484,105170.0,105160.0,0.20573855]
[1748798659300,0.20918484,105170.0,105160.0,0.23022254]
[1748798659992,0.20918484,105170.0,105160.0,0.23022321]
[1748798660435,0.19967661,105170.0,105160.0,0.01272049]
[1748798660645,0.19967661,105170.0,105160.0,0.03052752]
[1748798661706,0.19967661,105170.0,105160.0,0.23974037]
[1748798661928,0.19967661,105170.0,105160.0,0.21524777]
[1748798662134,0.19967661,105170.0,105160.0,0.23974037]
[1748798662766,0.19967661,105170.0,105160.0,0.2492495]
[1748798662992,0.19967661,105170.0,105160.0,0.23974036]
[1748798663431,0.19967661,105170.0,105160.0,0.2367274]
[1748798663640,0.19967661,105170.0,105160.0,0.23673111]
[1748798663845,0.19967661,105170.0,105160.0,0.21890745]
[1748798664057,0.19967661,105170.0,105160.0,0.24341462]
[1748798664901,0.19967661,105170.0,105160.0,0.22559122]
[1748798665112,0.19967661,105170.0,105160.0,0.24341475]
[1748798665314,0.19967661,105170.0,105160.0,0.24341481]
[1748798665531,0.19967661,105170.0,105160.0,0.2434147]
[1748798666700,0.19967661,105170.0,105160.0,0.24341478]
[1748798666964,0.19967661,105170.0,105160.0,0.22559135]
[1748798667182,0.19967661,105170.0,105160.0,0.24341506]
[1748798667868,0.19967661,105170.0,105160.0,0.24341501]
[1748798668364,0.19967661,105170.0,105160.0,0.23673111]
[1748798668586,0.19967661,105170.0,105160.0,0.24341498]
[1748798669262,0.00950814,105170.0,105160.0,0.28412258]
[1748798669486,0.00950814,105170.0,105160.0,0.2841222]
[1748798669715,0.00950814,105170.0,105160.0,0.25961505]
[1748798669944,0.00950814,105170.0,105160.0,0.28412211]
[1748798670388,0.02852424,105170.0,105160.0,0.28412211]
[1748798670635,0.02852424,105170.0,105160.0,0.28412208]
[1748798671186,0.03803202,105170.0,105160.0,0.27743834]
[1748798671373,0.03803202,105170.0,105160.0,0.28412213]
[1748798671779,0.03803202,105170.0,105160.0,0.28412222]
[1748798672645,0.02852379,105170.0,105160.0,0.28412224]
[1748798672845,0.03803202,105170.0,105160.0,0.28412224]
[1748798673054,0.03803202,105170.0,105160.0,0.27743843]
[1748798673282,0.03803202,105170.0,105160.0,0.28412233]
[1748798673726,0.03803202,105170.0,105160.0,0.27461368]
[1748798673930,0.04754034,105170.0,105160.0,0.25010652]
[1748798674304,0.04754034,105170.0,105160.0,0.26792989]
[1748798674553,0.04754034,105170.0,105160.0,0.27461348]
[1748798675389,0.04754034,105170.0,105160.0,0.27461379]
[1748798675850,0.04754034,105170.0,105160.0,0.27461368]
[1748798676752,0.04754034,105170.0,105160.0,0.25010652]
[1748798676984,0.04754034,105170.0,105160.0,0.27461363]
[1748798677651,0.04754034,105170.0,105160.0,0.27461378]
[1748798677898,0.04754034,105170.0,105160.0,0.25679034]
[1748798678115,0.04754034,105170.0,105160.0,0.27461384]
[1748798678771,0.04754034,105170.0,105160.0,0.27461395]
[1748798678976,0.04754034,105170.0,105160.0,0.28412326]
[1748798678977,0.22820085,105170.0,105160.0,0.28412326]
[1748798679390,0.22820085,105170.0,105160.0,0.2841233]
[1748798679562,0.22820085,105170.0,105160.0,0.28412351]
[1748798679830,0.22820085,105170.0,105160.0,0.28412363]
[1748798680611,0.23770926,105170.0,105160.0,0.28412363]
[1748798680764,0.22820139,105170.0,105160.0,0.27461486]
[1748798681166,0.22820139,105170.0,105160.0,0.27461513]
[1748798681371,0.22820139,105170.0,105160.0,0.2746153]
[1748798681567,0.22820139,105170.0,105160.0,0.27461549]
[1748798682295,0.21869325,105170.0,105160.0,0.24059829]
[1748798682476,0.21869325,105170.0,105160.0,0.27461588]
[1748798682673,0.21869325,105170.0,105160.0,0.27744068]
[1748798682977,0.21869325,105170.0,105160.0,0.28412492]
[1748798683147,0.21869325,105170.0,105160.0,0.27744075]
[1748798683371,0.21869325,105170.0,105160.0,0.25961628]
[1748798683581,0.21869325,105170.0,105160.0,0.28412492]
[1748798683774,0.21869325,105170.0,105160.0,0.27744106]
[1748798684213,0.21869325,105170.0,105160.0,0.25010733]
[1748798684415,0.21869325,105170.0,105160.0,0.28412535]
[1748798684663,0.21869325,105170.0,105160.0,0.2746164]
[1748798684891,0.21869325,105170.0,105160.0,0.27461636]
[1748798685122,0.21869325,105170.0,105160.0,0.27461626]
[1748798685338,0.21869325,105170.0,105160.0,0.28412521]
[1748798685558,0.21869325,105170.0,105160.0,0.26630055]
[1748798685790,0.21869325,105170.0,105160.0,0.06541183]
[1748798686071,0.20918502,105170.0,105160.0,0.03421184]
[1748798686291,0.24148502,105170.0,105160.0,0.03421184]
[1748798686511,0.24148502,105170.0,105160.0,0.01638735]
[1748798686702,0.24148502,105170.0,105160.0,0.0342128]
[1748798686920,0.24148502,105170.0,105160.0,0.0342129]
[1748798687125,0.24148502,105170.0,105160.0,0.03421292]
[1748798687370,0.24148502,105170.0,105160.0,0.03421296]
[1748798688251,0.24148502,105170.0,105160.0,0.03421282]
[1748798688457,0.24148502,105170.0,105160.0,0.03421253]
[1748798688883,0.24148502,105170.0,105160.0,0.02752774]
[1748798689094,0.22578502,105170.0,105160.0,0.03421208]
[1748798689543,0.22578502,105170.0,105160.0,0.02752774]
[1748798689765,0.22578502,105170.0,105160.0,0.03421217]
[1748798690212,0.22578502,105170.0,105160.0,0.03421239]
[1748798690425,0.22578502,105170.0,105160.0,0.03421238]
[1748798690643,0.22578502,105170.0,105160.0,0.00970306]
[1748798690863,4.88363532,105170.0,105160.0,0.03421208]
[1748798691095,4.89933532,105170.0,105160.0,0.03055193]
[1748798691331,4.89933532,105170.0,105160.0,0.00604291]
[1748798691549,4.89933532,105170.0,105160.0,0.03055241]
[1748798691766,4.89933532,105170.0,105160.0,0.03055057]
[1748798691981,4.89933532,105170.0,105160.0,0.02386616]
[1748798692208,4.89933532,105170.0,105160.0,0.00604291]
[1748798692445,4.89933532,105170.0,105160.0,0.03054988]
[1748798693508,4.89933532,105170.0,105160.0,0.03054935]
[1748798693841,4.89933532,105170.0,105160.0,0.03054795]
[1748798694069,4.89933532,105170.0,105160.0,0.00604291]
[1748798694274,4.89933532,105170.0,105160.0,0.03054795]
[1748798694488,4.89933532,105170.0,105160.0,0.030548]
[1748798695327,4.89933532,105170.0,105160.0,0.00604296]
[1748798695525,4.89933532,105170.0,105160.0,0.01272615]
[1748798695738,4.89933532,105170.0,105160.0,0.03054781]
[1748798695939,4.89933532,105170.0,105160.0,0.03054686]
[1748798696365,4.88363532,105170.0,105160.0,0.03054686]
[1748798696562,4.88363532,105170.0,105160.0,0.01272615]
[1748798696780,4.88363532,105170.0,105160.0,0.03054522]
[1748798696984,4.88363532,105170.0,105160.0,0.00604296]
[1748798697450,4.88363532,105170.0,105160.0,0.03054525]
[1748798698069,4.88363532,105170.0,105160.0,0.03054474]
[1748798698296,4.88363532,105170.0,105160.0,0.03054456]
[1748798698732,4.88363532,105170.0,105160.0,0.0305439]
[1748798698966,4.90023532,105170.0,105160.0,0.0305439]
[1748798699390,4.90023532,105170.0,105160.0,0.03054352]
[1748798699810,4.90023532,105170.0,105160.0,0.03054315]
[1748798700036,4.90023532,105170.0,105160.0,0.03054316]
[1748798700237,4.90023532,105170.0,105160.0,0.03054315]
[1748798700461,4.90023532,105170.0,105160.0,0.03054303]
[1748798700665,4.90023532,105170.0,105160.0,0.03054305]
[1748798701583,4.90023532,105170.0,105160.0,0.01272471]
[1748798701805,4.90023532,105170.0,105160.0,0.03054271]
[1748798702024,4.86703532,105170.0,105160.0,0.03054267]
[1748798702443,4.86703532,105170.0,105160.0,0.03054266]
[1748798703091,4.86703532,105170.0,105160.0,0.03054264]
[1748798703307,4.88363532,105170.0,105160.0,0.0127247]
[1748798703727,4.88363532,105170.0,105160.0,0.03054262]
[1748798704144,4.97375532,105170.0,105160.0,0.03054262]
[1748798704551,4.97375532,105170.0,105160.0,0.0305426]
[1748798704758,4.95715532,105170.0,105160.0,0.02386088]
[1748798704969,4.95715532,105170.0,105160.0,0.03054269]
[1748798705262,4.947647,105170.0,105160.0,0.03054267]
[1748798705467,4.94755946,105170.0,105160.0,0.03054284]
[1748798705692,4.94755946,105170.0,105160.0,0.03945188]
[1748798706365,4.94755946,105170.0,105160.0,0.03945192]
[1748798706596,4.94755946,105170.0,105160.0,0.03054305]
[1748798706815,4.85743946,105170.0,105160.0,0.22132943]
[1748798707037,4.94755946,105170.0,105160.0,0.23914764]
[1748798707470,4.94755946,105170.0,105160.0,0.23914776]
[1748798707693,4.94755946,105170.0,105160.0,0.23914821]
[1748798707915,4.94755946,105170.0,105160.0,0.2391482]
[1748798708138,4.94755946,105170.0,105160.0,0.22355707]
[1748798708357,4.94755946,105170.0,105160.0,0.22173847]
[1748798708588,4.94755946,105170.0,105160.0,0.27144835]
[1748798708821,4.94755946,105170.0,105160.0,0.26476638]
[1748798709044,4.94755946,105170.0,105160.0,0.27144849]
[1748798709505,4.94755946,105170.0,105160.0,0.27144862]
[1748798709715,4.94755946,105170.0,105160.0,0.24694803]
[1748798709944,4.94755946,105170.0,105160.0,0.27144932]
[1748798710179,4.94755946,105170.0,105160.0,0.25934953]
[1748798710605,4.94755946,105170.0,105160.0,0.2564968]
[1748798710825,4.94755946,105170.0,105160.0,0.25649773]
[1748798711264,4.94755946,105170.0,105160.0,0.23199551]
[1748798711507,4.94755946,105170.0,105160.0,0.25649769]
[1748798712157,4.94755946,105170.0,105160.0,0.25649898]
[1748798712360,4.85743946,105170.0,105160.0,0.25649898]
[1748798712565,4.94755946,105170.0,105160.0,0.25649898]
[1748798712823,4.94755946,105170.0,105160.0,0.25649973]
[1748798713038,4.94755946,105170.0,105160.0,0.25650023]
[1748798713446,4.94755946,105170.0,105160.0,0.26015925]
[1748798713655,4.94755946,105170.0,105160.0,0.25347604]
[1748798713863,4.94755946,105170.0,105160.0,0.26966816]
[1748798714087,4.94755946,105170.0,105160.0,0.24516356]
[1748798714307,4.94755946,105170.0,105160.0,0.26966798]
[1748798714517,4.94755946,105170.0,105160.0,0.26015894]
[1748798714733,4.94755946,105170.0,105160.0,0.22785914]
[1748798715148,4.94755946,105170.0,105160.0,0.22785974]
[1748798715360,4.94755946,105170.0,105160.0,0.22786006]
[1748798715992,4.94755946,105170.0,105160.0,0.22786165]
[1748798716856,4.94755946,105170.0,105160.0,0.22786242]
[1748798717052,4.94755946,105170.0,105160.0,0.22786243]
[1748798717665,4.94755946,105170.0,105160.0,0.22786262]
[1748798717974,4.94755946,105170.0,105160.0,0.2278626]
[1748798718186,4.57150414,105170.0,105160.0,0.27818022]
[1748798718392,4.68064033,105170.0,105160.0,0.27818022]
[1748798718616,4.87080862,105170.0,105160.0,0.26867154]
[1748798718822,4.88031703,105170.0,105160.0,0.27818029]
[1748798719030,4.88031703,105170.0,105160.0,0.27149672]
[1748798719237,4.88031703,105170.0,105160.0,0.27149638]
[1748798719458,4.88031703,105170.0,105160.0,0.27818012]
[1748798719671,4.88031703,105170.0,105160.0,0.27818011]
[1748798719892,4.88031703,105170.0,105160.0,0.28768888]
[1748798720759,4.88031703,105170.0,105160.0,0.28768839]
[1748798721115,4.88031703,105170.0,105160.0,0.26986549]
[1748798721323,4.88031703,105170.0,105160.0,0.28768845]
[1748798721519,4.88031703,105170.0,105160.0,0.28768851]
[1748798722038,4.88031703,105170.0,105160.0,0.28768837]
[1748798722269,4.88031703,105170.0,105160.0,0.29073126]
[1748798722610,4.88031703,105170.0,105160.0,0.26622475]
[1748798722809,4.88031703,105170.0,105160.0,0.29073128]
[1748798723236,4.88031703,105170.0,105160.0,0.26622475]
[1748798723452,4.88031703,105170.0,105160.0,0.29073129]
[1748798723998,4.88031703,105170.0,105160.0,0.28402863]
[1748798724207,4.88031703,105170.0,105160.0,0.27290826]
[1748798724389,4.88031703,105170.0,105160.0,0.2745388]
[1748798724652,4.87080916,105170.0,105160.0,0.27171352]
[1748798725083,4.86130102,105170.0,105160.0,0.27171352]
[1748798725292,4.86130102,105170.0,105160.0,0.24720705]
[1748798725517,4.86130102,105170.0,105160.0,0.27171349]
[1748798726039,4.86130102,105170.0,105160.0,0.27171359]
[1748798726253,4.86130102,105170.0,105160.0,0.25389064]
[1748798726468,4.86130102,105170.0,105160.0,0.27171362]
[1748798726857,4.86130102,105170.0,105160.0,0.24720705]
[1748798727067,4.8517927,105170.0,105160.0,0.2376981]
[1748798727269,4.8517927,105170.0,105160.0,0.26220471]
[1748798727676,4.8517927,105170.0,105160.0,0.26220481]
[1748798728420,4.8517927,105170.0,105160.0,0.27171384]
[1748798728629,4.8517927,105170.0,105160.0,0.24720717]
[1748798728836,4.8517927,105170.0,105160.0,0.27171408]
[1748798729898,4.8517927,105170.0,105160.0,0.25389098]
[1748798730131,4.8517927,105170.0,105160.0,0.26503066]
[1748798730343,4.8517927,105170.0,105160.0,0.27171447]
[1748798731225,4.8517927,105170.0,105160.0,0.24720717]
[1748798731457,4.8517927,105170.0,105160.0,0.27171477]
[1748798731676,4.8517927,105170.0,105160.0,0.26503097]
[1748798731934,4.8517927,105170.0,105160.0,0.27171489]
[1748798732889,4.8517927,105170.0,105160.0,0.27171507]
[1748798733113,4.8517927,105170.0,105160.0,0.26220648]
[1748798733330,4.8517927,105170.0,105160.0,0.26220649]
[1748798733557,4.8517927,105170.0,105160.0,0.2622065]
[1748798734108,4.8517927,105170.0,105160.0,0.26220708]
[1748798734772,4.8517927,105170.0,105160.0,0.26220716]
[1748798734979,4.8517927,105170.0,105160.0,0.26220763]
[1748798735195,4.8517927,105170.0,105160.0,0.26220783]
[1748798736712,4.84228429,105170.0,105160.0,0.24438278]
[1748798736956,4.84228429,105170.0,105160.0,0.26220803]
[1748798737357,4.84228429,105170.0,105160.0,0.26220859]
[1748798738128,4.84228429,105170.0,105160.0,0.26220868]
[1748798738329,4.84228429,105170.0,105160.0,0.23769865]
[1748798738537,4.84228429,105170.0,105160.0,0.25552476]
[1748798738744,4.84228429,105170.0,105160.0,0.26220955]
[1748798738949,4.84228429,105170.0,105160.0,0.23769865]
[1748798739180,4.84228429,105170.0,105160.0,0.25270148]
[1748798739324,4.84228429,105170.0,105160.0,0.27172001]
[1748798739738,4.84228429,105170.0,105160.0,0.27171997]
[1748798740149,4.84228429,105170.0,105160.0,0.26503598]
[1748798740353,4.84228429,105170.0,105160.0,0.27172145]
[1748798740772,4.84228429,105170.0,105160.0,0.27172158]
[1748798741698,4.84228429,105170.0,105160.0,0.26501827]
[1748798741900,4.84228429,105170.0,105160.0,0.27172195]
[1748798742111,5.03064981,105170.0,105160.0,0.03121645]
[1748798742323,5.06104981,105170.0,105160.0,0.00304294]
[1748798742526,5.07559066,105170.0,105160.0,0.00304294]
[1748798743525,5.10414966,105170.0,105160.0,0.00304294]
[1748798746135,0.1996956,105160.0,105150.0,0.24953251]
[1748798746352,4.87462464,105160.0,105150.0,0.28597438]
[1748798746710,4.87462464,105160.0,105150.0,0.27646434]
[1748798746947,4.87462464,105160.0,105150.0,0.26755803]
[1748798747137,4.87462464,105160.0,105150.0,0.27646359]
[1748798747338,4.87462464,105160.0,105150.0,0.26978401]
[1748798747494,4.87462464,105160.0,105150.0,0.26165135]
[1748798747699,4.87462464,105160.0,105150.0,0.27946351]
[1748798747913,4.87462464,105160.0,105150.0,0.27946274]
[1748798748132,4.87562464,105160.0,105150.0,0.28146117]
[1748798748349,4.87562464,105160.0,105150.0,0.28145936]
[1748798748778,4.87562464,105160.0,105150.0,0.28145888]
[1748798748986,4.87562464,105160.0,105150.0,0.28145866]
[1748798749220,4.87562464,105160.0,105150.0,0.24806568]
[1748798749463,4.88513368,105160.0,105150.0,0.25757572]
[1748798749686,4.88513368,105160.0,105150.0,0.26648049]
[1748798749912,4.88513368,105160.0,105150.0,0.25757572]
[1748798750578,5.16794464,105160.0,105150.0,0.034757]
[1748798750832,5.26045586,105160.0,105150.0,0.02585226]
[1748798751040,5.26045586,105160.0,105150.0,0.0080432]
[1748798751284,5.26045586,105160.0,105150.0,0.02585256]
[1748798751501,5.26045586,105160.0,105150.0,0.02140019]
[1748798751724,5.16794464,105160.0,105150.0,0.02140004]
[1748798752157,5.16794464,105160.0,105150.0,0.0303045]
[1748798752381,5.16794464,105160.0,105150.0,0.02140004]
[1748798753213,5.16794464,105160.0,105150.0,0.02139908]
[1748798753682,5.16794464,105160.0,105150.0,0.02139892]
[1748798753879,5.16794464,105160.0,105150.0,0.01472169]
[1748798754071,5.16794464,105160.0,105150.0,0.02139892]
[1748798754280,5.16794464,105160.0,105150.0,0.01472169]
[1748798754575,5.16794464,105160.0,105150.0,0.02139892]
[1748798754772,5.16794464,105160.0,105150.0,0.01472169]
[1748798755027,5.16794464,105160.0,105150.0,0.02139892]
[1748798755445,5.16794464,105160.0,105150.0,0.02139822]
[1748798755653,5.16794464,105160.0,105150.0,0.01472181]
[1748798755874,5.16794464,105160.0,105150.0,0.02139822]
[1748798756085,5.16794464,105160.0,105150.0,0.02139807]
[1748798757113,5.16794464,105160.0,105150.0,0.01472181]
[1748798757323,5.16794464,105160.0,105150.0,0.02139759]
[1748798757738,5.16794464,105160.0,105150.0,0.01472181]
[1748798757945,5.16794464,105160.0,105150.0,0.02139748]
[1748798758425,5.25794464,105160.0,105150.0,0.02139748]
[1748798758817,5.25794464,105160.0,105150.0,0.02139706]
[1748798758979,5.25794464,105160.0,105150.0,0.02139703]
[1748798759185,5.25794464,105160.0,105150.0,0.01472181]
[1748798759383,5.25794464,105160.0,105150.0,0.02139703]
[1748798759956,5.25794464,105160.0,105150.0,0.02139708]
[1748798759957,5.28611591,105160.0,105150.0,0.02139708]
[1748798760174,5.28611591,105160.0,105150.0,0.02139697]
[1748798760810,5.25794464,105160.0,105150.0,0.02139697]
[1748798761236,5.25794464,105160.0,105150.0,0.02139695]
[1748798761465,5.25794464,105160.0,105150.0,0.02139693]
[1748798761683,5.25794464,105160.0,105150.0,0.02139697]
[1748798762102,5.25794464,105160.0,105150.0,0.01472181]
[1748798762314,5.25794464,105160.0,105150.0,0.02139702]
[1748798762524,5.25794464,105160.0,105150.0,0.021397]
[1748798762960,5.32100856,105160.0,105150.0,0.021397]
[1748798764235,5.32100856,105160.0,105150.0,0.02139718]
[1748798764964,5.32100856,105160.0,105150.0,0.02139752]
[1748798765167,5.32100856,105160.0,105150.0,0.01472179]
[1748798765384,5.32100856,105160.0,105150.0,0.02139752]
[1748798766241,5.25794464,105160.0,105150.0,0.01472179]
[1748798766698,5.25794464,105160.0,105150.0,0.02139857]
[1748798766913,5.25794464,105160.0,105150.0,0.01472179]
[1748798767541,5.25794464,105160.0,105150.0,0.04752179]
[1748798769200,5.25794464,105160.0,105150.0,0.0541995]
[1748798769410,5.25794464,105160.0,105150.0,0.04752179]
[1748798769838,5.25794464,105160.0,105150.0,0.05642689]
[1748798770047,5.25794464,105160.0,105150.0,0.05420061]
[1748798770253,5.25794464,105160.0,105150.0,0.06533198]
[1748798770466,5.25794464,105160.0,105150.0,0.05642688]
[1748798770682,5.25794464,105160.0,105150.0,0.04752179]
[1748798771064,5.25794464,105160.0,105150.0,0.06533657]
[1748798771271,5.25794464,105160.0,105150.0,0.06533656]
[1748798771469,5.25794464,105160.0,105150.0,0.07424926]
[1748798771670,5.25794464,105160.0,105150.0,0.04752177]
[1748798771825,5.25794464,105160.0,105150.0,0.05420629]
[1748798772229,5.25794464,105160.0,105150.0,0.04752177]
[1748798772430,5.25794464,105160.0,105150.0,0.07425991]
[1748798772632,5.25794464,105160.0,105150.0,0.08094444]
[1748798772952,5.25794464,105160.0,105150.0,0.04752177]
[1748798773333,5.25794464,105160.0,105150.0,0.05643442]
[1748798773563,5.25794464,105160.0,105150.0,0.06534707]
[1748798773774,5.25794464,105160.0,105150.0,0.04752177]
[1748798774203,5.25794464,105160.0,105150.0,0.05643489]
[1748798774405,5.25794464,105160.0,105150.0,0.04752177]
[1748798774631,5.25794464,105160.0,105150.0,0.05420661]
[1748798774836,5.25794464,105160.0,105150.0,0.04752177]
[1748798775255,5.25794464,105160.0,105150.0,0.05643484]
[1748798775471,5.25794464,105160.0,105150.0,0.04752178]
[1748798776397,5.25794464,105160.0,105150.0,0.05643547]
[1748798776639,5.25794464,105160.0,105150.0,0.06534918]
[1748798776818,5.25794464,105160.0,105150.0,0.05420705]
[1748798777025,5.25794464,105160.0,105150.0,0.05643546]
[1748798777242,5.25794464,105160.0,105150.0,0.07426272]
[1748798777453,5.25794464,105160.0,105150.0,0.04752178]
[1748798777666,5.25782464,105160.0,105150.0,0.08094805]
[1748798778096,5.25782464,105160.0,105150.0,0.08094802]
[1748798778238,5.25782464,105160.0,105150.0,0.08094959]
[1748798778442,5.25782464,105160.0,105150.0,0.08095274]
[1748798778844,5.25782464,105160.0,105150.0,0.08095275]
[1748798779063,5.25782464,105160.0,105150.0,0.07791065]
[1748798779427,5.25782464,105160.0,105150.0,0.08095393]
[1748798779628,4.96562464,105160.0,105150.0,0.08095391]
[1748798779837,4.96562464,105160.0,105150.0,0.08095392]
[1748798780045,4.96562464,105160.0,105150.0,0.05643701]
[1748798780256,4.96562464,105160.0,105150.0,0.04752177]
[1748798780484,4.96562464,105160.0,105150.0,0.06535216]
[1748798780693,4.96562464,105160.0,105150.0,0.04752177]
[1748798781298,4.96562464,105160.0,105150.0,0.07426749]
[1748798781500,4.96562464,105160.0,105150.0,0.04752177]
[1748798782480,4.96562464,105160.0,105150.0,0.06535217]
[1748798782903,4.96562464,105160.0,105150.0,0.05420817]
[1748798783135,4.96562464,105160.0,105150.0,0.06312337]
[1748798783339,4.96562464,105160.0,105150.0,0.04752177]
[1748798783952,4.96562464,105160.0,105150.0,0.05420815]
[1748798784106,4.96562464,105160.0,105150.0,0.05643695]
[1748798784305,4.96562464,105160.0,105150.0,0.04752177]
[1748798786143,4.96562464,105160.0,105150.0,0.07426722]
[1748798786351,4.96562464,105160.0,105150.0,0.05420813]
[1748798786559,4.96562464,105160.0,105150.0,0.04752177]
[1748798786982,4.96562464,105160.0,105150.0,0.06535202]
[1748798787194,4.96562464,105160.0,105150.0,0.04752177]
[1748798787841,4.96562464,105160.0,105150.0,0.06535191]
[1748798788058,4.96562464,105160.0,105150.0,0.04752177]
[1748798788484,4.96562464,105160.0,105150.0,0.0653519]
[1748798788661,4.96562464,105160.0,105150.0,0.0809532]
[1748798788921,4.96562464,105160.0,105150.0,0.04752177]
[1748798789954,4.96562464,105160.0,105150.0,0.08095352]
[1748798790154,4.96562464,105160.0,105150.0,0.08095355]
[1748798790286,4.96562464,105160.0,105150.0,0.08095357]
[1748798790493,4.96562464,105160.0,105150.0,0.08095358]
[1748798790715,4.96562464,105160.0,105150.0,0.07426722]
[1748798790922,4.96562464,105160.0,105150.0,0.06535207]
[1748798791130,4.96562464,105160.0,105150.0,0.05643692]